bitfinex-derivatives/quotes_ETHF0:USTF0_20250626
["timestamp","ask_amount","ask_price","bid_price","bid_amount"]
[1750896931827,1.4002,2425.8,2425.5,0.6733]
[1750896931828,0.57686,2425.6,2425.5,0.6733]
[1750896932229,0.57685,2425.7,2425.5,0.6733]
[1750896932530,0.57686,2425.6,2425.5,0.6733]
[1750896932730,0.57685,2425.7,2425.5,0.6733]
[1750896932931,0.57686,2425.6,2425.5,0.6733]
[1750896933231,0.57686,2425.6,2425.5,1.25018]
[1750896933435,0.57686,2425.6,2425.5,0.6733]
[1750896935334,1.4002,2425.8,2425.5,1.25017]
[1750896935335,0.57683,2425.7,2425.5,1.25017]
[1750896935634,0.57684,2425.7,2425.5,0.6733]
[1750896935834,3.2078,2426.0,2425.5,1.25017]
[1750896936137,0.57686,2425.7,2425.5,0.6733]
[1750896936638,0.57686,2425.7,2425.5,1.25018]
[1750896936836,2.8264,2425.9,2425.5,0.6733]
[1750896937037,0.57686,2425.7,2425.5,0.6733]
[1750896937336,2.02323,2425.8,2425.6,0.57685]
[1750896937536,0.57684,2425.7,2425.5,1.25017]
[1750896938035,0.57684,2425.7,2425.6,6.456]
[1750896938730,0.57683,2425.7,2425.6,6.456]
[1750896940333,2.02322,2425.8,2425.6,7.03286]
[1750896940624,0.57683,2425.7,2425.6,6.456]
[1750896940830,1.98413,2425.7,2425.6,6.456]
[1750896942537,1.4073,2425.7,2425.6,7.03286]
[1750896942739,1.38,2425.9,2425.6,6.456]
[1750896942940,0.57681,2425.8,2425.6,6.456]
[1750896943441,0.57683,2425.7,2425.6,6.456]
[1750896943634,2.01742,2425.8,2425.6,7.03286]
[1750896943837,0.57683,2425.7,2425.6,6.456]
[1750896944038,2.01743,2425.7,2425.6,6.456]
[1750896945747,1.4406,2425.7,2425.4,3.2078]
[1750896946042,0.57688,2425.5,2425.4,3.2078]
[1750896946445,1.96388,2425.5,2425.4,3.2078]
[1750896947748,1.31247,2425.6,2425.4,3.2078]
[1750896948044,0.7356,2425.6,2425.4,4.5013]
[1750896948243,1.31246,2425.6,2425.4,4.5013]
[1750896948436,0.7356,2425.6,2425.4,4.5013]
[1750896948747,0.7356,2425.6,2425.5,0.57688]
[1750896948950,0.7356,2425.6,2425.4,3.9244]
[1750896949146,0.7356,2425.6,2425.5,0.57688]
[1750896949347,0.57684,2425.7,2425.5,0.57688]
[1750896949749,0.57686,2425.6,2425.4,4.5013]
[1750896950043,0.6837,2425.8,2425.4,4.5013]
[1750896950044,3.2078,2426.0,2425.8,0.57681]
[1750896950249,3.2078,2426.0,2425.9,0.57679]
[1750896950444,5.2248,2426.4,2426.1,0.57673]
[1750896950639,2.3465946,2426.3,2426.1,0.57673]
[1750896950835,3.8774,2426.4,2426.0,0.6731]
[1750896951048,0.99911472,2426.3,2426.2,0.57672]
[1750896951347,3.2078,2426.7,2426.1,3.2078]
[1750896951550,2.24508738,2426.6,2426.3,0.57668]
[1750896951753,0.57668,2426.4,2426.2,6.456]
[1750896952248,0.57665,2426.5,2426.2,7.03271]
[1750896952449,0.57665,2426.5,2426.2,7.0327]
[1750896952953,2.0101,2426.6,2426.2,6.456]
[1750896953259,2.33921733,2426.5,2426.2,6.456]
[1750896953550,0.6837,2426.8,2426.4,0.57667]
[1750896953853,3.30253161,2427.6,2426.7,3.2078]
[1750896954058,0.99816766,2427.5,2426.8,7.1779]
[1750896954354,0.57635,2427.8,2427.2,0.57646]
[1750896954543,8.25632904,2429.0,2427.2,0.57646]
[1750896954544,3.2078,2429.2,2427.7,3.2078]
[1750896954744,3.2078,2429.2,2428.7,3.2078]
[1750896954946,3.2078,2429.2,2428.4,5.6425134]
[1750896955149,6.811,2429.6,2428.1,3.24628454]
[1750896955150,3.2078,2428.9,2428.1,5.6425134]
[1750896955347,3.2078,2428.3,2427.8,1.4453]
[1750896955543,3.2078,2428.3,2427.7,3.2078]
[1750896955544,3.2078,2428.3,2427.7,3.78416]
[1750896955751,1.3756,2428.2,2427.7,3.78416]
[1750896955954,1.3756,2428.2,2427.7,3.2078]
[1750896956147,3.2078,2427.9,2427.3,0.6845]
[1750896956352,1.95194,2427.8,2427.3,1.26095]
[1750896956554,0.57637,2427.7,2427.3,0.6845]
[1750896956752,1.3756,2427.6,2427.3,0.6845]
[1750896956954,1.3756,2427.6,2427.1,10.6842]
[1750896957153,3.2078,2427.4,2427.1,6.809]
[1750896957357,0.57648,2427.2,2427.1,6.809]
[1750896957656,2.0271,2427.3,2426.8,11.27787]
[1750896957855,2.0271,2427.3,2426.8,12.69747]
[1750896958056,2.0271,2427.3,2426.8,5.88847]
[1750896958253,2.60356,2427.3,2426.8,5.88847]
[1750896958454,2.0271,2427.3,2426.8,12.69747]
[1750896959049,0.57648,2427.2,2426.8,5.3119]
[1750896959261,2.60357,2427.3,2426.9,6.809]
[1750896959655,2.60357,2427.3,2426.8,5.88847]
[1750896959656,0.57648,2427.2,2426.8,5.3119]
[1750896959959,0.57648,2427.2,2426.9,6.809]
[1750896960158,1.98558,2427.2,2426.9,6.809]
[1750896960354,0.57651,2427.1,2426.9,6.809]
[1750896960657,0.57651,2427.1,2426.8,3.8923]
[1750896960658,1.4091,2427.1,2426.8,10.0168]
[1750896960957,1.9856,2427.1,2426.8,10.7111]
[1750896961858,0.5765,2427.1,2426.8,10.7111]
[1750896962151,0.6877,2427.3,2426.8,10.7111]
[1750896962353,0.6877,2427.3,2426.8,6.809]
[1750896962354,0.57655,2426.9,2426.8,6.809]
[1750896962665,1.4091,2427.2,2426.5,3.2078]
[1750896962861,0.57662,2426.6,2426.5,3.2078]
[1750896963062,0.5766,2426.7,2426.3,3.2078]
[1750896963257,0.6902,2426.6,2426.3,3.2078]
[1750896963759,0.57664,2426.5,2426.3,3.2078]
[1750896964062,0.57665,2426.5,2426.3,3.2078]
[1750896964454,1.26683,2426.6,2426.3,3.2078]
[1750896964653,0.57666,2426.5,2426.3,3.2078]
[1750896964853,0.57665,2426.5,2426.3,3.2078]
[1750896965053,3.8947,2426.8,2426.3,3.2078]
[1750896965054,0.57663,2426.6,2426.3,3.2078]
[1750896965760,0.57665,2426.5,2426.3,3.2078]
[1750896965963,0.57667,2426.4,2426.3,3.2078]
[1750896966348,0.57672,2426.2,2426.1,6.809]
[1750896966553,0.57674,2426.1,2426.0,3.2078]
[1750896966753,0.57679,2425.9,2425.8,6.809]
[1750896968255,1.98697,2426.0,2425.8,6.809]
[1750896968553,0.57677,2426.0,2425.8,6.809]
[1750896969456,0.57675,2426.1,2425.8,6.809]
[1750896969856,0.57675,2426.1,2425.8,7.3858]
[1750896970053,0.57674,2426.1,2425.8,7.3858]
[1750896970863,1.3815,2426.2,2425.8,7.3858]
[1750896970864,0.57678,2426.0,2425.8,6.809]
[1750896971064,2.00285,2426.1,2425.8,7.3858]
[1750896971257,1.3815,2426.2,2425.8,6.809]
[1750896971464,0.57668,2426.4,2426.1,0.57673]
[1750896971764,0.6743,2426.7,2426.1,3.2078]
[1750896971962,0.57665,2426.5,2426.2,8.9894]
[1750896972164,2.00274,2426.6,2426.4,0.57667]
[1750896972360,0.57664,2426.6,2426.3,0.57668]
[1750896972564,0.6743,2426.7,2426.3,0.57668]
[1750896972565,0.57665,2426.5,2426.3,0.57668]
[1750896973157,0.57663,2426.6,2426.3,0.57668]
[1750896973360,0.57665,2426.5,2426.3,0.57668]
[1750896973960,0.57667,2426.4,2426.2,8.9894]
[1750896974157,0.57667,2426.4,2426.2,7.5124]
[1750896974753,0.57669,2426.3,2426.2,7.5124]
[1750896974961,0.57669,2426.3,2426.2,6.809]
[1750896975154,0.57679,2425.9,2425.8,3.9372]
[1750896975355,0.57675,2426.1,2425.8,3.9372]
[1750896975770,4.54,2426.6,2425.8,5.3826]
[1750896975969,0.57668,2426.4,2426.1,0.57673]
[1750896976363,0.57669,2426.3,2426.1,0.57673]
[1750896977366,0.5767,2426.3,2426.1,0.57673]
[1750896978265,0.57668,2426.4,2426.1,0.57673]
[1750896978767,0.5767,2426.3,2426.1,0.57673]
[1750896978962,0.57668,2426.4,2426.1,0.57673]
[1750896979164,0.57668,2426.4,2425.8,5.3826]
[1750896979363,0.57665,2426.5,2425.8,5.3826]
[1750896979567,0.57665,2426.5,2426.3,0.57667]
[1750896979968,4.54,2426.6,2426.1,0.57673]
[1750896979969,0.57669,2426.3,2426.1,0.57673]
[1750896980167,0.57669,2426.3,2426.2,0.57672]
[1750896980368,1.3322,2426.6,2426.1,3.2078]
[1750896980568,0.57668,2426.4,2426.2,0.5767]
[1750896981073,0.57666,2426.5,2426.3,0.57669]
[1750896981268,0.5767,2426.3,2426.1,10.59452]
[1750896981576,0.57667,2426.4,2426.2,0.5767]
[1750896981761,0.5767,2426.3,2426.1,10.59452]
[1750896982070,0.57668,2426.4,2426.2,0.57672]
[1750896982765,0.57667,2426.4,2426.1,10.0178]
[1750896982971,0.57667,2426.4,2426.2,1.27831]
[1750896983171,0.57666,2426.5,2426.3,0.57669]
[1750896984269,3.2078,2426.9,2426.2,0.7016]
[1750896984472,2.00771,2427.1,2426.9,0.57653]
[1750896984670,1.4312,2427.1,2426.7,10.0518]
[1750896984866,0.57648,2427.2,2427.0,0.57651]
[1750896985271,1.93247,2427.3,2427.0,3.78431]
[1750896985477,0.57648,2427.2,2427.0,3.78431]
[1750896985673,0.5765,2427.2,2427.0,3.2078]
[1750896985969,1.356,2427.3,2427.0,3.2078]
[1750896985970,0.5765,2427.1,2427.0,3.2078]
[1750896986169,1.2799,2427.1,2427.0,3.2078]
[1750896986574,0.57657,2426.8,2426.7,10.0518]
[1750896986777,0.57656,2426.9,2426.7,3.2078]
[1750896987071,1.27991,2427.1,2426.7,3.2078]
[1750896987267,1.27991,2427.1,2426.8,0.6839]
[1750896987466,1.27991,2427.1,2426.9,0.57655]
[1750896987668,0.57649,2427.2,2426.9,0.57655]
[1750896987866,0.57647,2427.3,2427.0,3.78431]
[1750896988268,0.57648,2427.2,2427.0,3.2078]
[1750896988478,0.5765,2427.1,2427.0,3.2078]
[1750896989178,0.57655,2426.9,2426.8,0.6839]
[1750896989371,0.57659,2426.8,2426.6,3.2078]
[1750896989571,0.57659,2426.8,2426.6,10.0518]
[1750896989772,0.5766,2426.7,2426.6,10.0518]
[1750896990174,3.2078,2427.4,2426.6,10.0518]
[1750896990378,0.57651,2427.1,2426.9,0.57655]
[1750896990581,0.57651,2427.1,2426.8,0.57656]
[1750896990776,1.91501,2427.1,2426.8,0.57656]
[1750896991279,0.57653,2427.0,2426.7,0.57658]
[1750896991481,1.3385,2427.1,2426.7,0.57658]
[1750896991684,0.57656,2426.9,2426.7,0.57658]
[1750896991979,0.57656,2426.9,2426.6,12.4865134]
[1750896992478,0.57656,2426.9,2426.6,13.0631234]
[1750896992674,0.5766,2426.7,2426.6,6.844]
[1750896993480,1.9151,2426.7,2426.6,6.844]
[1750896993681,3.2078,2427.9,2427.1,0.57648]
[1750896993874,0.6701,2427.6,2427.2,6.843]
[1750896994081,0.6701,2427.6,2427.4,3.78421]
[1750896994382,0.6701,2427.6,2427.4,3.2078]
[1750896994581,0.6701,2427.6,2427.5,0.57641]
[1750896995081,2.0883,2427.8,2427.4,3.2078]
[1750896995376,2.66465,2427.8,2427.4,3.2078]
[1750896995577,0.57636,2427.7,2427.4,3.78421]
[1750896995784,1.4195,2427.6,2427.5,0.57641]
[1750896996079,0.6688,2427.8,2427.4,3.2078]
[1750896996278,0.6688,2427.8,2427.7,0.57636]
[1750896996978,0.6688,2427.8,2427.6,0.57637]
[1750896997173,2.06,2427.8,2427.6,0.57637]
[1750896997680,23.11772133,2449.2,2427.6,0.57637]
[1750896997681,0.57606,2429.0,2428.6,0.57613]
[1750896997879,4.599,2429.3,2428.8,3.2078]
[1750896998078,4.599,2429.3,2428.6,6.843]
[1750896998079,0.57603,2429.1,2428.6,7.41914]
[1750896998275,3.2078,2428.7,2428.0,7.5682]
[1750896998478,0.57618,2428.5,2428.1,3.78406]
[1750896998789,1.3912,2428.4,2428.2,0.57624]
[1750896999284,1.3912,2428.4,2428.1,3.78405]
[1750896999477,1.3912,2428.4,2428.1,3.2078]
[1750896999677,0.57623,2428.3,2427.8,3.78412]
[1750896999882,1.4084,2428.2,2427.9,6.843]
[1750897000076,1.4084,2428.2,2427.9,7.4193]
[1750897000273,1.98465,2428.2,2427.9,6.843]
[1750897000484,1.4084,2428.2,2427.9,6.843]
[1750897000887,1.4084,2428.2,2427.8,3.2078]
[1750897001079,3.2078,2428.4,2427.8,6.841]
[1750897001287,0.57629,2428.0,2427.8,6.841]
[1750897001586,1.4084,2427.9,2427.8,6.841]
[1750897003089,1.98471,2427.9,2427.8,6.841]
[1750897003280,1.4084,2427.9,2427.8,6.841]
[1750897003481,1.98471,2427.9,2427.8,6.841]
[1750897003676,1.4084,2427.9,2427.8,6.841]
[1750897004085,1.98471,2427.9,2427.8,6.841]
[1750897005788,0.57638,2427.6,2427.5,3.933]
[1750897005990,0.57645,2427.3,2427.2,10.0488]
[1750897006381,2.64662,2427.5,2427.2,10.62527]
[1750897006585,0.57644,2427.4,2427.2,10.0488]
[1750897006781,2.0702,2427.5,2427.2,10.0488]
[1750897007094,0.57644,2427.4,2427.2,10.0488]
[1750897007591,0.57645,2427.3,2427.2,10.0488]
[1750897007784,2.0702,2427.5,2427.2,10.0488]
[1750897008095,0.57645,2427.3,2427.2,10.0488]
[1750897008886,2.0702,2427.5,2427.2,10.0488]
[1750897009093,0.57645,2427.3,2427.2,10.0488]
[1750897009592,0.57644,2427.4,2427.2,10.0488]
[1750897009893,0.57645,2427.3,2427.2,10.0488]
[1750897010896,0.57645,2427.4,2427.2,10.0488]
[1750897011689,2.64662,2427.5,2427.2,10.62527]
[1750897012081,0.57644,2427.4,2427.2,10.0488]
[1750897012287,0.57644,2427.4,2427.2,10.62527]
[1750897012482,0.57644,2427.4,2427.2,10.0488]
[1750897013392,0.57645,2427.3,2427.2,10.0488]
[1750897013599,0.57645,2427.4,2427.2,10.0488]
[1750897013798,0.0948051,2427.3,2427.2,10.0488]
[1750897013993,2.64661,2427.5,2427.2,10.62528]
[1750897014296,0.57645,2427.3,2427.2,10.0488]
[1750897014898,0.22153007,2427.4,2427.2,10.0488]
[1750897015089,0.57645,2427.3,2427.2,10.0488]
[1750897015286,0.79798007,2427.3,2427.2,10.0488]
[1750897016394,0.22153007,2427.3,2427.2,10.62528]
[1750897017199,0.22153007,2427.3,2427.2,10.0488]
[1750897017600,0.22153007,2427.3,2427.2,10.62528]
[1750897018303,0.79800007,2427.3,2426.9,1.3363]
[1750897018497,0.22153007,2427.3,2427.1,0.57648]
[1750897018703,0.22153007,2427.3,2427.2,0.57648]
[1750897021803,0.79798007,2427.3,2427.1,10.73128]
[1750897022102,0.22153007,2427.3,2427.2,0.57648]
[1750897022806,0.79800007,2427.3,2427.1,10.73128]
[1750897023007,0.22153007,2427.3,2427.2,0.57648]
[1750897023503,0.22153007,2427.3,2427.1,10.1548]
[1750897024008,0.57654,2427.0,2426.9,6.947]
[1750897024408,0.22153007,2427.0,2426.9,7.52355]
[1750897024713,0.79806007,2427.0,2426.9,6.947]
[1750897024901,0.22153007,2427.0,2426.9,7.52355]
[1750897025906,0.22153007,2427.0,2426.9,8.89915]
[1750897027308,0.22153007,2427.0,2426.9,16.3338634]
[1750897027603,3.2078,2427.5,2427.4,0.57643]
[1750897028809,3.78421,2427.5,2427.4,0.57643]
[1750897029506,3.78421,2427.5,2427.3,7.52344]
[1750897030414,3.78421,2427.5,2427.3,7.52345]
[1750897031013,2.65319,2427.6,2427.3,6.947]
[1750897031211,0.6968,2427.7,2427.3,6.947]
[1750897031512,3.9295,2427.9,2427.3,12.5895134]
[1750897031711,3.9295,2427.9,2427.7,0.57635]
[1750897031915,0.7217,2427.9,2427.8,0.57633]
[1750897032310,1.4457,2428.0,2427.8,0.57633]
[1750897032311,2.022,2428.0,2427.8,0.57632]
[1750897033218,0.57634,2427.8,2427.6,0.57637]
[1750897033517,0.57638,2427.6,2427.5,6.947]
[1750897034019,0.57637,2427.7,2427.5,7.52341]
[1750897034218,0.57638,2427.6,2427.5,6.947]
[1750897034614,0.57637,2427.7,2427.5,7.5234]
[1750897034813,0.57638,2427.6,2427.5,6.947]
[1750897035516,0.57641,2427.5,2427.4,6.947]
[1750897035821,0.5764,2427.6,2427.4,6.947]
[1750897036020,0.57641,2427.5,2427.4,6.947]
[1750897037716,0.57643,2427.4,2427.3,5.6425134]
[1750897037918,0.57643,2427.4,2427.3,12.5895134]
[1750897039620,3.47904,2427.7,2427.2,6.947]
[1750897039621,0.57645,2427.3,2427.2,6.947]
[1750897039922,1.92315,2427.3,2427.2,6.947]
[1750897040724,0.57652,2427.0,2426.9,9.3817134]
[1750897040927,0.57652,2427.0,2426.9,6.947]
[1750897041418,1.3467,2427.1,2426.8,6.947]
[1750897041624,1.92325,2426.9,2426.8,6.947]
[1750897042535,0.57651,2427.1,2426.8,7.52356]
[1750897042832,2.7846,2427.2,2426.8,9.9582734]
[1750897043033,0.57651,2427.1,2426.9,0.57654]
[1750897043432,3.36109,2427.2,2427.0,0.57651]
[1750897043633,3.36109,2427.2,2426.8,6.947]
[1750897043935,2.7846,2427.2,2426.8,6.947]
[1750897044134,0.57653,2427.0,2426.8,7.52356]
[1750897044335,0.57652,2427.1,2426.8,6.947]
[1750897044634,0.57652,2427.0,2426.8,6.947]
[1750897044935,0.57652,2427.0,2426.8,7.52356]
[1750897045132,0.57652,2427.0,2426.9,0.57655]
[1750897045333,0.57652,2427.1,2426.9,0.57655]
[1750897045730,0.57652,2427.0,2426.8,7.52356]
[1750897046236,0.57652,2427.0,2426.9,0.57655]
[1750897046529,0.57652,2427.1,2426.9,0.57655]
[1750897046832,0.57653,2427.0,2426.8,7.52356]
[1750897047235,0.57653,2427.0,2426.9,0.57655]
[1750897047733,0.57653,2427.0,2426.8,6.947]
[1750897047930,0.57651,2427.1,2426.8,6.947]
[1750897048136,2.04941,2427.1,2426.8,7.52355]
[1750897048338,2.04941,2427.1,2426.9,0.57654]
[1750897048734,0.57652,2427.0,2426.8,7.52357]
[1750897049132,1.4069,2427.2,2426.8,6.947]
[1750897049332,3.2078,2427.3,2427.2,0.57648]
[1750897049532,1.27359,2427.6,2427.4,0.57642]
[1750897049734,0.7283,2427.8,2427.4,3.2078]
[1750897050040,1.30465,2427.8,2427.6,0.57636]
[1750897052637,1.30465,2427.8,2427.4,3.9265]
[1750897052838,0.57636,2427.7,2427.5,0.57641]
[1750897053240,1.30465,2427.8,2427.6,0.57638]
[1750897053739,0.57636,2427.7,2427.5,0.5764]
[1750897053943,1.30464,2427.8,2427.6,0.57637]
[1750897054745,0.57636,2427.7,2427.5,0.57639]
[1750897054938,1.30464,2427.8,2427.6,0.57636]
[1750897055237,0.57632,2427.9,2427.7,0.57636]
[1750897055544,0.57633,2427.8,2427.7,0.57636]
[1750897055934,0.57633,2427.8,2427.6,7.41737]
[1750897056537,0.57633,2427.8,2427.7,0.57636]
[1750897056743,0.57632,2427.9,2427.7,0.57636]
[1750897056941,0.57633,2427.8,2427.6,7.41737]
[1750897057644,0.57632,2427.9,2427.7,0.57635]
[1750897057836,0.57634,2427.8,2427.7,0.57635]
[1750897058040,0.57633,2427.9,2427.7,0.57635]
[1750897058537,0.674,2428.1,2427.7,0.57635]
[1750897058538,0.674,2428.1,2427.7,3.2078]
[1750897058843,0.57622,2428.3,2428.0,0.57628]
[1750897059035,1.92002,2428.3,2428.0,0.57628]
[1750897059234,1.92002,2428.3,2428.0,7.41628]
[1750897059438,3.8913,2428.4,2428.3,0.57622]
[1750897059439,0.6835,2428.4,2428.3,0.57622]
[1750897059736,1.26376,2428.6,2428.4,0.57619]
[1750897059939,1.26376,2428.6,2428.1,2.1049]
[1750897060140,3.2078,2428.7,2428.4,0.57618]
[1750897060338,0.57615,2428.6,2428.4,0.57618]
[1750897060538,0.57613,2428.7,2428.4,0.57618]
[1750897060735,0.57613,2428.7,2428.5,0.57616]
[1750897061344,2.0314,2428.9,2428.5,0.57616]
[1750897061545,0.57613,2428.7,2428.5,0.57616]
[1750897061744,2.0314,2428.9,2428.4,7.5564]
[1750897061942,2.0314,2428.9,2428.4,8.9333]
[1750897062250,6.84,2429.5,2428.7,3.2078]
[1750897062450,0.57604,2429.1,2428.8,7.41608]
[1750897063138,0.57607,2428.9,2428.8,6.84]
[1750897064247,0.57607,2428.9,2428.7,3.2078]
[1750897064248,0.5761,2428.8,2428.7,3.2078]
[1750897064439,0.5761,2428.8,2428.7,10.0468]
[1750897065644,0.57617,2428.5,2428.4,3.9242]
[1750897065843,0.57617,2428.5,2428.4,10.7632]
[1750897066341,0.57624,2428.2,2428.1,51.349]
[1750897066646,0.57624,2428.2,2428.1,6.838]
[1750897068046,0.57629,2428.0,2427.9,0.6979]
[1750897068340,0.57629,2428.0,2427.9,6.838]
[1750897068546,1.3444,2428.2,2427.9,6.838]
[1750897068746,0.57629,2428.0,2427.9,6.838]
[1750897069150,0.57627,2428.1,2427.9,6.838]
[1750897069547,0.57629,2428.0,2427.9,6.838]
[1750897070350,1.92065,2428.2,2427.9,7.41429]
[1750897070848,0.57629,2428.0,2427.9,6.838]
[1750897071046,0.57628,2428.1,2427.9,6.838]
[1750897071240,0.57628,2428.1,2427.5,3.2078]
[1750897071241,3.2078,2428.1,2427.5,3.2078]
[1750897071445,0.57631,2427.9,2427.5,10.62219]
[1750897071647,3.2078,2428.1,2428.0,0.57629]
[1750897071847,0.5762,2428.4,2428.2,0.57624]
[1750897072248,0.57618,2428.5,2428.3,0.57622]
[1750897072550,0.57619,2428.4,2428.3,6.839]
[1750897072753,0.57618,2428.5,2428.3,6.839]
[1750897072945,0.57619,2428.4,2428.3,6.839]
[1750897073545,1.4468,2428.6,2428.3,6.839]
[1750897074145,0.57619,2428.4,2428.3,6.839]
[1750897075939,1.4468,2428.6,2428.0,0.692]
[1750897076145,3.2078,2428.2,2427.6,3.9375]
[1750897076345,0.57634,2427.8,2427.7,6.784]
[1750897076545,0.57636,2427.7,2427.6,3.9375]
[1750897076745,0.57636,2427.7,2427.6,10.7215]
[1750897078753,0.57636,2427.7,2427.6,9.9918]
[1750897079654,0.57635,2427.8,2427.6,9.9918]
[1750897079846,0.57635,2427.8,2427.6,10.56818]
[1750897081154,0.57635,2427.8,2427.6,9.9918]
[1750897081454,1.4212,2427.9,2427.6,9.9918]
[1750897081455,0.57636,2427.7,2427.6,9.9918]
[1750897082244,0.57636,2427.7,2427.6,6.784]
[1750897082754,1.99836,2427.7,2427.6,6.784]
[1750897084155,1.422,2427.7,2427.3,3.2078]
[1750897084355,0.57642,2427.5,2427.3,3.2078]
[1750897084759,0.57643,2427.4,2427.3,3.2078]
[1750897085058,1.2924,2427.6,2427.3,3.2078]
[1750897085252,1.2924,2427.6,2427.3,3.78424]
[1750897085452,0.57641,2427.5,2427.3,3.78424]
[1750897085654,0.57641,2427.5,2427.3,3.2078]
[1750897085854,0.57641,2427.5,2427.3,3.78424]
[1750897086463,0.716,2427.6,2427.4,0.57641]
[1750897086654,0.716,2427.6,2427.3,3.2078]
[1750897087458,0.57643,2427.4,2427.3,3.2078]
[1750897088263,0.57645,2427.3,2427.2,6.784]
[1750897089553,0.57649,2427.2,2427.0,0.57652]
[1750897089753,0.57649,2427.2,2427.0,7.36152]
[1750897090166,0.57644,2427.4,2427.2,0.57646]
[1750897090466,0.57646,2427.3,2427.1,0.57649]
[1750897090666,0.57648,2427.2,2427.0,7.36151]
[1750897091166,3.8856,2427.5,2427.3,0.57645]
[1750897092365,0.716,2427.6,2427.1,0.6999]
[1750897092667,3.2078,2428.1,2427.7,0.57634]
[1750897092869,0.57634,2427.8,2427.6,0.57637]
[1750897093368,1.4175,2428.0,2427.4,2.72202]
[1750897093369,0.57638,2427.6,2427.4,2.72202]
[1750897093663,0.57638,2427.6,2427.3,44.0078]
[1750897093664,0.57644,2427.4,2427.1,8.06138]
[1750897094273,0.57646,2427.3,2427.1,8.06138]
[1750897094462,0.57646,2427.3,2427.1,7.4849]
[1750897094766,1.4175,2427.4,2427.1,7.4849]
[1750897094966,1.4175,2427.4,2427.3,0.57645]
[1750897095169,1.4175,2427.4,2427.1,7.4849]
[1750897095369,1.4175,2427.4,2427.3,0.57645]
[1750897095561,1.4175,2427.4,2427.2,0.57646]
[1750897095761,1.4175,2427.4,2427.3,0.57645]
[1750897096765,1.4175,2427.4,2427.2,0.57646]
[1750897097263,1.4175,2427.4,2427.3,0.57645]
[1750897099672,1.4175,2427.4,2427.2,0.57647]
[1750897099969,1.4175,2427.4,2427.3,0.57645]
[1750897101068,1.4175,2427.4,2427.1,7.4849]
[1750897101270,1.4175,2427.4,2427.0,3.9266]
[1750897101478,0.57647,2427.3,2427.0,3.78432]
[1750897101777,0.57646,2427.3,2427.0,3.78431]
[1750897102170,1.99394,2427.4,2427.0,3.78431]
[1750897102372,0.57646,2427.3,2427.0,3.78431]
[1750897102674,1.99048,2427.2,2427.0,0.57651]
[1750897103075,1.414,2427.2,2427.1,0.5765]
[1750897103468,1.414,2427.2,2427.0,0.57651]
[1750897103773,1.414,2427.2,2426.8,6.785]
[1750897103968,0.689,2427.1,2426.8,6.785]
[1750897104170,0.689,2427.1,2427.0,0.57652]
[1750897104380,2.0981,2427.1,2427.0,0.57652]
[1750897104875,2.6746,2427.1,2426.9,0.57653]
[1750897105068,2.0981,2427.1,2426.8,6.785]
[1750897105467,0.57652,2427.0,2426.8,7.36156]
[1750897105671,0.57654,2427.0,2426.8,7.36157]
[1750897105978,0.57655,2427.0,2426.8,6.785]
[1750897106166,0.57655,2426.9,2426.8,6.785]
[1750897107276,0.57657,2426.8,2426.7,3.2078]
[1750897108181,1.3605,2426.9,2426.7,3.2078]
[1750897108478,1.3605,2426.9,2426.7,3.78438]
[1750897108973,1.93706,2426.9,2426.7,3.2078]
[1750897109174,0.57657,2426.8,2426.7,3.2078]
[1750897111174,1.93706,2426.9,2426.7,3.7844]
[1750897111379,1.3605,2426.9,2426.7,3.7844]
[1750897112380,1.3605,2426.9,2426.8,0.57657]
[1750897112580,1.3605,2426.9,2426.7,3.2078]
[1750897112973,1.3605,2426.9,2426.8,0.57657]
[1750897113181,1.93705,2426.9,2426.7,3.2078]
[1750897113480,1.93705,2426.9,2426.7,3.78439]
[1750897113679,1.3605,2426.9,2426.7,3.2078]
[1750897113883,0.57657,2426.8,2426.7,3.2078]
[1750897114084,1.3605,2426.9,2426.7,3.7844]
[1750897114382,1.3605,2426.9,2426.8,0.57657]
[1750897115679,1.93706,2426.9,2426.7,3.78439]
[1750897116077,1.93706,2426.9,2426.7,3.2078]
[1750897116278,1.3605,2426.9,2426.7,3.7844]
[1750897116884,1.93706,2426.9,2426.7,3.7844]
[1750897117379,1.93706,2426.9,2426.7,3.2078]
[1750897117882,0.57657,2426.8,2426.7,3.2078]
[1750897118085,1.3605,2426.9,2426.7,3.2078]
[1750897118086,1.93706,2426.9,2426.7,3.2078]
[1750897118283,1.3605,2426.9,2426.7,3.2078]
[1750897118488,0.57657,2426.8,2426.7,3.2078]
[1750897120789,1.93706,2426.9,2426.7,3.2078]
[1750897121091,0.57667,2426.4,2425.4,3.2078]
[1750897121291,3.2078,2425.6,2425.5,0.57688]
[1750897122091,3.2078,2425.6,2425.5,6.711]
[1750897122292,3.78466,2425.6,2425.5,6.711]
[1750897122498,0.57692,2425.4,2425.2,9.4434]
[1750897122793,3.2078,2425.3,2425.2,10.02035]
[1750897123389,3.2078,2425.3,2425.2,9.4434]
[1750897123694,0.57696,2425.2,2425.1,6.712]
[1750897123886,0.57696,2425.2,2425.1,47.512]
[1750897124281,0.57696,2425.2,2425.1,6.712]
[1750897125698,3.2078,2425.3,2425.1,6.712]